bitfinex/quotes_SOLUSD_20250201
["timestamp","ask_amount","ask_price","bid_price","bid_amount"]
[1738387382782,6.0724,232.71,232.58,17.96232853]
[1738387382985,6.0724,232.71,232.6,22.19657771]
[1738387383885,6.0724,232.71,232.6,26.62126771]
[1738387384184,81.663,232.73,232.62,0.25098]
[1738387384389,81.663,232.73,232.69,8.53374918]
[1738387385178,0.80577687,232.72,232.67,8.53374918]
[1738387385371,0.80577687,232.72,232.64,8.53374918]
[1738387385568,81.663,232.71,232.64,8.53374918]
[1738387386069,0.80594741,232.7,232.63,8.53374918]
[1738387389186,0.80594741,232.7,232.63,13.41184853]
[1738387390485,81.663,232.69,232.62,21.94559771]
[1738387390691,82.4689963,232.69,232.63,13.41184853]
[1738387391187,82.4689963,232.69,232.62,8.53374918]
[1738387391380,82.4689963,232.69,232.62,13.41184853]
[1738387391588,0.80603177,232.68,232.62,13.41184853]
[1738387391971,0.80603177,232.68,232.61,13.41184853]
[1738387392568,81.663,232.67,232.61,13.41184853]
[1738387392769,81.663,232.66,232.6,0.063]
[1738387394496,81.663,232.66,232.6,13.47484853]
[1738387394785,81.663,232.66,232.6,22.00859771]
[1738387395096,81.663,232.66,232.61,8.53374918]
[1738387396696,81.663,232.66,232.63,8.53374918]
[1738387398999,81.693,232.66,232.63,8.53374918]
[1738387402994,0.03,232.66,232.65,13.41184853]
[1738387403198,0.03,232.66,232.65,21.94559771]
[1738387413704,0.03,232.66,232.65,22.19657771]
[1738387437027,0.03,232.66,232.65,21.94559771]
[1738387437227,0.03,232.66,232.65,24.72559771]
[1738387444225,0.03,232.66,232.65,24.97657771]
[1738387445422,0.03,232.66,232.65,25.10206771]
[1738387449632,0.03,232.66,232.65,26.10206771]
[1738387449943,0.03,232.66,232.65,60.36255443]
[1738387450731,0.03,232.66,232.65,64.66655443]
[1738387451126,0.063,232.77,232.65,66.17825443]
[1738387451334,0.063,232.77,232.76,21.94559771]
[1738387452346,0.063,232.77,232.76,22.19657771]
[1738387453120,0.063,232.77,232.76,22.32206771]
[1738387457847,0.063,232.77,232.76,22.44755771]
[1738387458058,0.063,232.77,232.76,23.44755771]
[1738387458869,0.063,232.77,232.76,105.74755771]
[1738387459361,6.2529,232.9,232.81,0.25098]
[1738387459676,6.2529,232.9,232.81,24.97657771]
[1738387460148,6.2529,232.9,232.81,25.10206771]
[1738387460555,5.8159,232.9,232.83,0.25098]
[1738387460757,5.8159,232.9,232.88,13.41184853]
[1738387462013,5.8159,232.9,232.87,13.41184853]
[1738387464287,6.62101591,232.9,232.83,8.53374918]
[1738387464475,5.8159,232.9,232.81,2.78]
[1738387464784,82.46826208,232.89,232.81,16.19184853]
[1738387464969,81.663,232.89,232.81,16.19184853]
[1738387465860,0.80528946,232.88,232.81,16.19184853]
[1738387466067,82.46832765,232.89,232.8,2.78]
[1738387466365,82.46832765,232.89,232.81,13.41184853]
[1738387467776,81.663,232.88,232.81,13.41184853]
[1738387470788,81.693,232.88,232.81,13.41184853]
[1738387473391,81.693,232.88,232.81,21.94559771]
[1738387474087,81.693,232.88,232.83,13.41184853]
[1738387474297,81.693,232.88,232.82,8.53374918]
[1738387474298,81.693,232.88,232.84,8.53374918]
[1738387475388,81.693,232.88,232.82,8.53374918]
[1738387476591,81.693,232.88,232.83,8.53374918]
[1738387480091,82.49826973,232.88,232.81,21.94559771]
[1738387482802,82.49826973,232.88,232.81,22.00859771]
[1738387485588,81.663,232.87,232.81,0.063]
[1738387486604,0.8053812,232.86,232.81,0.063]
[1738387487301,82.46841129,232.87,232.81,0.063]
[1738387491686,81.663,232.86,232.81,0.063]
[1738387494904,82.46840398,232.86,232.81,0.063]
[1738387495784,7.7103,232.85,232.81,0.063]
[1738387495983,82.46845452,232.84,232.81,0.063]
[1738387500510,81.663,232.83,232.81,0.063]
[1738387500699,0.80554584,232.82,232.81,0.063]
[1738387500905,82.46854655,232.83,232.81,0.063]
[1738387501307,81.663,232.82,232.81,0.063]
[1738387502090,82.46855736,232.82,232.81,0.063]
[1738387502290,81.663,232.82,232.81,0.063]
[1738387502595,82.46852479,232.82,232.81,0.063]
[1738387503421,81.663,232.82,232.81,0.063]
[1738387506200,0.8055065,232.82,232.68,8.53374918]
[1738387506391,82.6,232.81,232.68,8.53374918]
[1738387506607,0.80573087,232.8,232.69,13.41184853]
[1738387507026,6.1607,232.79,232.69,13.41184853]
[1738387507208,0.8057448,232.78,232.69,13.41184853]
[1738387508695,0.8057448,232.78,232.69,13.47484853]
[1738387509415,82.6,232.77,232.69,13.47484853]
[1738387509616,0.80577873,232.76,232.69,13.47484853]
[1738387515325,82.6,232.75,232.69,8.59674918]
[1738387515848,6.1607,232.79,232.74,8.53374918]
[1738387516002,6.1607,232.79,232.75,8.53374918]
[1738387516909,0.80557698,232.81,232.74,8.53374918]
[1738387518808,0.80557698,232.81,232.74,13.41184853]
[1738387520435,0.80557698,232.81,232.74,13.47484853]
[1738387520848,0.83557698,232.81,232.74,13.47484853]
[1738387521232,0.03,232.81,232.74,13.47484853]
[1738387521439,82.6,232.8,232.74,13.47484853]
[1738387521728,82.6,232.8,232.76,13.41184853]
[1738387522439,82.6,232.8,232.75,13.41184853]
[1738387522935,82.6,232.8,232.74,13.47484853]
[1738387523837,82.6,232.8,232.74,8.59674918]
[1738387526934,82.6,232.8,232.74,0.063]
[1738387531441,82.6,232.8,232.74,13.47484853]
[1738387532724,0.80561877,232.79,232.74,0.063]
[1738387533151,82.6,232.78,232.74,0.063]
[1738387533357,0.80573239,232.77,232.74,0.063]
[1738387542061,82.6,232.76,232.74,0.063]
[1738387542244,83.40575964,232.76,232.74,0.063]
[1738387543155,82.6,232.76,232.74,0.063]
[1738387547864,0.80575186,232.75,232.74,0.063]
[1738387549061,82.6,232.76,232.74,0.063]
[1738387550966,82.6,232.75,232.74,0.063]
[1738387562872,0.80578018,232.8,232.74,0.063]
[1738387566196,0.80564938,232.79,232.74,0.063]
[1738387567091,0.80568617,232.78,232.74,0.063]
[1738387568188,0.80575967,232.77,232.74,0.063]
[1738387569176,0.80575536,232.76,232.74,0.063]
[1738387569378,0.83575514,232.81,232.74,0.063]
[1738387570156,20.27472992,232.86,232.74,0.063]
[1738387570600,1.0,232.84,232.74,0.063]
[1738387571374,20.35664601,232.86,232.74,0.063]
[1738387571375,1.0,232.81,232.74,0.063]
[1738387574783,82.6,232.8,232.74,0.063]
[1738387578989,82.6,232.79,232.74,0.063]
[1738387583693,82.6,232.78,232.74,0.063]
[1738387586309,1.0,232.75,232.69,0.063]
[1738387586593,82.6,232.74,232.69,0.063]
[1738387589399,82.6,232.73,232.69,0.063]
[1738387591285,89.0877,232.73,232.69,0.063]
[1738387592709,82.6,232.72,232.69,0.063]
[1738387598600,82.6,232.71,232.69,0.063]
[1738387604509,82.6,232.7,232.69,0.063]
[1738387604686,6.4877,232.73,232.69,0.063]
[1738387610408,82.6,232.69,232.66,0.063]
[1738387611091,83.68523828,232.69,232.66,0.063]
[1738387611494,82.6,232.68,232.61,1.5832]
[1738387611692,82.6,232.67,232.61,1.5832]
[1738387614621,82.6,232.67,232.61,0.063]
[1738387615014,83.92828212,232.67,232.61,0.063]
[1738387615216,111.58193121,232.67,232.61,0.063]
[1738387615719,110.25364909,232.67,232.61,0.063]
[1738387616320,82.6,232.66,232.61,0.063]
[1738387621252,82.6,232.66,232.61,1.063]
[1738387622316,82.6,232.65,232.61,1.063]
[1738387622508,82.6,232.65,232.61,0.063]
[1738387627417,82.6,232.64,232.63,1.0]
[1738387631729,82.6,232.64,232.61,1.063]
[1738387635335,0.03,232.66,232.63,1.0]
[1738387635518,0.03,232.66,232.64,1.0]
[1738387644438,0.03,232.66,232.65,1.0]
[1738387659256,0.03,232.66,232.63,0.063]
[1738387659944,0.03,232.66,232.64,1.0]
[1738387662354,0.03,232.66,232.63,0.063]
[1738387662659,0.03,232.66,232.65,1.0]
[1738387664026,82.63,232.66,232.65,1.0]
[1738387665273,82.63,232.66,232.65,14.41184853]
[1738387665581,0.03,232.66,232.65,14.47484853]
[1738387666158,0.03,232.66,232.65,23.00859771]
[1738387666871,0.03,232.66,232.65,25.78859771]
[1738387668153,0.03,232.66,232.65,17.25484853]
[1738387669750,0.03,232.66,232.65,25.78859771]
[1738387671355,0.03,232.66,232.65,26.03957771]
[1738387672181,0.03,232.74,232.73,1.0]
[1738387672461,0.03,232.74,232.73,22.94559771]
[1738387672858,0.03,232.74,232.73,14.41184853]
[1738387676960,0.03,232.74,232.73,1.0]
[1738387677665,0.03,232.74,232.71,14.41184853]
[1738387686994,0.03,232.74,232.73,1.0]
[1738387687699,0.03,232.74,232.71,14.41184853]
[1738387687874,0.03,232.74,232.73,1.0]
[1738387691695,0.03,232.74,232.71,14.41184853]
[1738387695492,0.03,232.74,232.71,1.0]
[1738387695689,0.03,232.74,232.65,1.7277]
[1738387695690,0.03,232.74,232.69,1.0]
[1738387699601,82.6,232.73,232.69,1.0]
[1738387705506,82.6,232.72,232.69,1.0]
[1738387705697,82.6,232.71,232.67,1.0]
[1738387705890,82.6,232.7,232.67,1.0]
[1738387709382,82.6,232.69,232.65,0.063]
[1738387711610,84.1539,232.68,232.65,0.063]
[1738387717426,82.6,232.67,232.65,0.063]
[1738387720209,82.6,232.66,232.65,0.063]
[1738387720514,1.5539,232.68,232.65,0.063]
[1738387726038,0.03,232.69,232.65,0.063]
[1738387734124,1.03,232.69,232.65,0.0001]
[1738387735233,82.6,232.68,232.65,0.0001]
[1738387736931,82.63,232.68,232.65,0.0001]
[1738387741135,82.6,232.67,232.65,0.0001]
[1738387747135,82.6,232.66,232.65,0.0001]
[1738387753042,0.03,232.68,232.65,0.0001]
[1738387764970,82.6,232.67,232.65,0.0001]
[1738387770881,82.6,232.66,232.65,0.0001]
[1738387776780,1.03,232.68,232.65,0.0001]
[1738387779464,1.03,232.68,232.61,0.043]
[1738387779465,1.0,232.66,232.61,0.043]
[1738387781160,82.6,232.67,232.61,0.043]
[1738387782061,1.0,232.65,232.61,0.043]
[1738387782577,82.6,232.66,232.61,0.043]
[1738387785769,82.6,232.65,232.61,0.043]
[1738387786088,82.6,232.64,232.61,0.043]
[1738387786272,82.6,232.64,232.61,2.7096]
[1738387786469,82.6,232.64,232.63,1.0]
[1738387789371,82.6,232.64,232.61,2.7096]
[1738387791784,82.6,232.63,232.61,2.7096]
[1738387802995,82.6,232.63,232.61,1.043]
[1738387803582,82.6,232.62,232.61,1.043]
[1738387804983,82.63,232.66,232.61,14.45484853]
[1738387805184,82.63,232.66,232.64,1.0]
[1738387808081,82.63,232.66,232.65,13.41184853]
[1738387809602,0.03,232.66,232.65,13.41184853]
[1738387811893,0.03,232.66,232.64,1.0]
[1738387814418,82.6,232.65,232.64,1.0]
[1738387815490,82.6,232.65,232.64,14.41184853]
[1738387818411,0.03,232.66,232.65,13.41184853]
[1738387820401,0.03,232.66,232.64,1.0]
[1738387824315,82.63,232.66,232.64,14.41184853]
[1738387826112,82.63,232.66,232.64,1.0]
[1738387826312,82.63,232.66,232.62,1.0]
[1738387826701,82.6,232.65,232.62,1.0]
[1738387826900,82.6,232.64,232.62,1.0]
[1738387830321,82.6,232.63,232.62,1.0]
[1738387832802,82.6,232.63,232.62,14.41184853]
[1738387833921,0.03,232.65,232.62,14.41184853]
[1738387833922,82.63,232.65,232.62,14.41184853]
[1738387835125,82.63,232.65,232.64,1.0]
[1738387838821,82.63,232.65,232.62,1.0]
[1738387839028,82.6,232.64,232.62,1.0]
[1738387842331,82.6,232.63,232.62,1.0]
[1738387843323,82.6,232.62,232.61,1.043]
[1738387843530,1.6423,232.64,232.57,0.03]
[1738387843717,82.6,232.61,232.57,0.03]
[1738387848141,82.6,232.6,232.57,0.03]
[1738387854041,82.6,232.59,232.57,0.03]
[1738387854343,82.6,232.58,232.57,1.03]
[1738387858747,82.6,232.58,232.57,0.03]
[1738387858944,82.6,232.58,232.57,1.03]
[1738387860039,0.03,232.61,232.57,1.03]
[1738387863724,0.03,232.61,232.57,0.03]
[1738387865448,0.03,232.61,232.57,1.03]
[1738387865749,0.03,232.61,232.59,1.0]
[1738387865949,82.6,232.6,232.59,1.0]
[1738387866351,82.6,232.6,232.57,1.03]
[1738387869756,82.63,232.6,232.59,1.0]
[1738387871248,82.63,232.6,232.57,0.03]
[1738387871935,82.6,232.59,232.57,0.03]
[1738387872849,82.6,232.58,232.57,0.03]
[1738387877864,0.03,232.6,232.57,0.03]
[1738387878849,0.03,232.6,232.51,0.03]
[1738387878850,1.0,232.55,232.51,0.03]
[1738387879048,82.6,232.54,232.51,0.03]
[1738387879451,82.6,232.53,232.51,0.03]
[1738387883765,82.6,232.52,232.51,0.03]
[1738387887872,6.377,232.6,232.52,1.0]
[1738387888054,82.6,232.59,232.52,1.0]
[1738387891670,82.6,232.59,232.51,0.03]
[1738387892054,83.6,232.59,232.51,0.03]
[1738387892471,1.0,232.57,232.51,0.03]
[1738387892682,1.0,232.55,232.51,0.03]
[1738387892976,82.6,232.54,232.51,0.03]
[1738387898660,82.6,232.53,232.51,0.03]
[1738387898857,83.6,232.53,232.5,0.063]
[1738387899574,1.0,232.51,232.5,0.0001]
[1738387901283,83.6,232.53,232.5,0.0001]
[1738387902388,84.69736362,232.53,232.5,0.0001]
[1738387903666,1.0,232.51,232.5,0.0001]
[1738387908889,1.0,232.51,232.48,0.03]
[1738387910494,82.6,232.5,232.48,0.03]
[1738387910797,82.6,232.49,232.48,0.03]
[1738387914594,1.0,232.49,232.47,0.03]
[1738387914774,1.0,232.49,232.42,1.063]
[1738387914775,82.6,232.48,232.45,0.033]
[1738387914976,1.0,232.46,232.42,1.063]
[1738387915199,82.6,232.45,232.42,0.063]
[1738387919508,82.6,232.44,232.42,0.063]
[1738387921303,82.6,232.44,232.43,1.0]
[1738387921701,23.16505127,232.49,232.43,1.0]
[1738387922094,23.16505127,232.49,232.45,1.0]
[1738387925196,23.16505127,232.49,232.43,2.6374]
[1738387925400,82.6,232.48,232.43,2.6374]
[1738387926396,82.6,232.48,232.45,1.0]
[1738387927184,82.6,232.48,232.43,2.6374]
[1738387929717,82.63,232.48,232.43,2.6374]
[1738387930618,82.63,232.48,232.43,1.0]
[1738387930801,83.63,232.48,232.42,0.063]
[1738387931318,82.6,232.47,232.42,0.063]
[1738387932295,82.6,232.46,232.42,0.063]
[1738387932495,83.6,232.46,232.42,0.063]
[1738387937221,82.6,232.45,232.42,0.063]
[1738387942409,1.0,232.44,232.42,0.063]
[1738387942613,1.0,232.44,232.41,0.063]
[1738387943215,82.6,232.43,232.41,0.063]
[1738387945435,83.68122409,232.43,232.41,0.063]
[1738387946646,82.6,232.43,232.41,0.063]
[1738387949249,82.6,232.42,232.41,0.063]
[1738387952142,0.03,232.46,232.43,1.0]
[1738387952342,0.03,232.46,232.45,1.0]
[1738387961766,0.03,232.46,232.43,1.0]
[1738387963969,82.6,232.45,232.43,1.0]
[1738387969976,82.6,232.44,232.43,1.0]
[1738387975891,82.6,232.43,232.41,1.063]
[1738387978254,82.6,232.43,232.41,0.063]
[1738387979565,82.6,232.42,232.41,0.063]
[1738387982258,82.6,232.42,232.41,0.0001]
[1738387984820,1.03,232.45,232.41,0.0001]
[1738387985604,82.6,232.44,232.41,0.0001]
[1738387986994,82.6,232.44,232.4,0.0001]
[1738387987187,1.0,232.43,232.4,0.0001]
[1738387989813,1.03,232.43,232.4,0.0001]
[1738387990714,82.6,232.42,232.4,0.0001]
[1738387993731,82.6,232.41,232.4,0.0001]
[1738387993893,1.03,232.43,232.4,0.0001]
[1738387998017,1.0,232.41,232.4,0.0001]
[1738387999930,1.0,232.41,232.33,0.063]
[1738388000121,1.0,232.39,232.33,0.063]
[1738388001109,1.0,232.37,232.33,0.063]
[1738388002332,1.0,232.35,232.33,0.063]
[1738388002652,1.0,232.35,232.29,1.0]
[1738388003816,1.0,232.41,232.33,1.0]
[1738388004018,82.6,232.34,232.33,1.0]
[1738388004229,1.0,232.41,232.33,1.0]
[1738388006525,1.0,232.41,232.31,1.0]
[1738388008648,82.6,232.33,232.31,1.0]
[1738388008812,82.6,232.32,232.31,1.0]
[1738388014033,82.6,232.32,232.31,1.063]
[1738388014433,1.05786019,232.39,232.31,1.063]
[1738388014731,82.6,232.38,232.31,1.063]
[1738388020443,82.6,232.37,232.31,1.063]
[1738388025640,82.63,232.37,232.31,1.063]
[1738388026443,82.6,232.36,232.31,1.063]
[1738388029851,0.03,232.37,232.31,1.063]
[1738388029852,82.6,232.35,232.34,1.0]
[1738388034041,0.03,232.37,232.34,1.0]
[1738388034245,0.03,232.37,232.36,1.0]
[1738388045764,0.03,232.37,232.36,9.53374918]
[1738388045936,0.03,232.37,232.36,22.94559771]
[1738388046136,0.03,232.37,232.36,29.40779771]
[1738388053373,0.03,232.37,232.36,29.65877771]
[1738388053539,0.03,232.43,232.42,14.41184853]
[1738388053745,0.03,232.43,232.42,22.94559771]
[1738388078490,0.03,232.43,232.42,57.9767527]
[1738388082595,0.03,232.43,232.42,23.84175598]
[1738388088465,0.03,232.43,232.42,58.2277327]
[1738388088785,0.03,232.45,232.44,15.66282853]
[1738388088990,0.03,232.45,232.44,61.75659797]
[1738388090389,0.03,232.45,232.44,62.00757797]
[1738388090572,0.03,232.48,232.47,34.66282853]
[1738388090884,0.03,232.48,232.47,45.09253348]
[1738388091705,0.03,232.48,232.47,49.39413348]
[1738388092498,0.03,232.48,232.47,53.69713348]
[1738388092791,0.03,232.48,232.47,48.14315348]
[1738388100797,0.03,232.48,232.47,48.39413348]
[1738388101001,82.6,232.63,232.5,22.12549]
[1738388101195,82.6,232.63,232.5,44.71596627]
[1738388102606,82.6,232.63,232.5,49.01696627]
[1738388105506,82.6,232.63,232.5,48.01696627]
[1738388105809,82.6,232.63,232.5,43.59047627]
[1738388105993,82.6,232.63,232.5,42.94559771]
[1738388106696,82.6,232.58,232.5,42.94559771]
[1738388133804,82.6,232.58,232.5,47.37208771]
[1738388134018,82.6,232.58,232.57,1.0]
[1738388134228,0.03,232.61,232.57,22.94559771]
[1738388134427,0.03,232.61,232.58,13.41184853]
[1738388135124,0.03,232.61,232.57,9.53374918]
[1738388141420,0.03,232.61,232.6,22.12549]
[1738388141606,0.03,232.61,232.6,24.84118181]
[1738388143534,0.03,232.61,232.6,29.14038181]
[1738388145611,0.03,232.61,232.6,23.59020181]
[1738388146730,0.03,232.61,232.6,26.37020181]
[1738388149727,0.03,232.61,232.6,27.62118181]
[1738388150415,0.03,232.61,232.6,26.62118181]
[1738388152860,0.03,232.61,232.6,26.49569181]
[1738388156148,0.03,232.61,232.6,27.62118181]
[1738388156340,0.03,232.64,232.63,35.41184853]
[1738388156542,0.03,232.64,232.63,44.07108771]
[1738388156745,0.03,232.66,232.64,13.53733853]
[1738388156925,0.03,232.66,232.64,22.71562899]
[1738388158944,0.03,232.66,232.64,27.01402899]
[1738388159533,0.03,232.75,232.74,14.53733853]
[1738388159845,0.03,232.83,232.82,1.0]
[1738388160060,0.03,232.83,232.82,9.53374918]
[1738388161215,0.03,232.83,232.82,22.94559771]
[1738388166554,82.16,232.92,232.89,1.0]
[1738388166730,82.16,232.91,232.89,1.0]
[1738388167755,8.0345,232.93,232.92,1.0]
[1738388169654,8.0645,232.93,232.92,1.0]
[1738388170156,8.0645,232.93,232.9,1.0]
[1738388170355,8.0645,232.93,232.92,1.0]
[1738388171053,8.0645,232.93,232.9,1.0]
[1738388171243,8.0645,232.93,232.92,1.0]
[1738388175859,1.5302,232.93,232.92,1.0]
[1738388176164,0.03,232.93,232.92,1.0]
[1738388181868,0.03,232.93,232.92,1.063]
[1738388200270,0.03,232.93,232.92,0.063]
[1738388215688,0.03,232.93,232.92,1.063]
[1738388216184,0.03,232.93,232.92,0.063]
[1738388219788,0.03,232.93,232.92,1.063]
[1738388222786,0.03,232.93,232.92,0.063]
[1738388227787,0.03,232.93,232.92,1.063]
[1738388228988,0.03,232.93,232.92,0.063]
[1738388233300,0.03,232.93,232.92,0.0001]
[1738388235099,0.03,232.93,232.92,1.0001]
[1738388235302,0.03,232.93,232.92,22.94569771]
[1738388235488,0.03,232.93,232.92,77.08069443]
[1738388235811,0.03,232.93,232.92,42.94569771]
[1738388240810,18.77047809,233.1,233.09,1.0]
[1738388241009,89.32572693,233.18,233.11,1.0]
[1738388241314,7.36210591,233.16,233.11,1.0]
[1738388241810,7.36210591,233.16,233.13,1.0]
[1738388243986,0.03,233.17,233.13,1.0]
[1738388246210,82.6,233.16,233.13,1.0]
[1738388247315,82.6,233.16,233.11,1.0]
[1738388247804,82.6,233.16,233.12,1.0]
[1738388249295,82.6,233.16,233.1,1.0]
[1738388249719,82.6,233.16,233.08,1.0]
[1738388249899,82.6,233.15,233.06,1.0]
[1738388250101,82.6,233.14,233.06,1.0]
[1738388250319,83.6,233.14,233.06,1.0]
[1738388255125,82.6,233.13,233.06,1.0]
[1738388261029,82.6,233.12,233.06,1.0]
[1738388265004,83.6,233.12,232.97,19.69314853]
[1738388265323,83.6,233.11,232.96,1.5537]
[1738388265720,83.6,233.11,232.96,10.08744918]
[1738388267844,1.0,233.09,232.96,1.5537]
[1738388269311,1.0,233.09,232.96,10.08744918]
[1738388271137,1.0,233.09,232.96,1.5537]
[1738388271340,1.0,233.09,232.94,2.82]
[1738388271548,1.0,233.09,232.94,11.35374918]
[1738388273048,82.6,233.08,232.94,11.35374918]
[1738388273341,82.6,233.08,232.95,8.53374918]
[1738388273523,82.6,233.08,232.96,8.53374918]
[1738388274438,82.6,233.08,232.95,8.53374918]
[1738388275950,82.6,233.08,232.94,8.59674918]
[1738388276321,82.6,233.08,232.95,8.53374918]
[1738388278145,82.6,233.08,232.96,8.53374918]
[1738388278348,82.6,233.08,232.97,8.53374918]
[1738388278920,82.6,233.07,232.97,8.53374918]
[1738388279123,82.6,233.06,232.97,8.53374918]
[1738388284767,82.6,233.05,232.97,8.53374918]
[1738388287242,82.6,233.05,232.96,8.53374918]
[1738388290780,82.6,233.04,232.96,8.53374918]
[1738388292459,82.6,233.04,232.95,8.53374918]
[1738388294083,82.6,233.03,232.95,8.53374918]
[1738388296166,82.6,233.03,232.94,8.59674918]
[1738388296364,82.6,233.03,232.94,0.063]
[1738388299677,82.6,233.02,232.94,0.063]
[1738388299877,82.6,233.01,232.94,0.063]
[1738388305589,82.6,233.0,232.94,0.063]
[1738388310905,82.6,233.0,232.95,8.53374918]
[1738388311085,82.6,233.0,232.97,8.53374918]
[1738388313681,82.6,233.0,232.96,8.53374918]
[1738388316999,82.6,233.0,232.97,8.53374918]
[1738388317497,82.6,233.05,232.97,8.53374918]
[1738388321011,82.6,233.05,232.96,8.53374918]
[1738388323404,82.6,233.04,232.96,8.53374918]
[1738388329380,82.6,233.03,232.96,13.41184853]
[1738388329582,82.6,233.03,232.94,8.59674918]
[1738388329798,82.6,233.03,232.94,0.063]
[1738388335313,82.6,233.02,232.94,0.063]
[1738388338903,82.6,233.02,232.94,8.59674918]
[1738388341412,82.6,233.01,232.94,8.59674918]
[1738388343921,82.6,233.01,232.97,20.0]
[1738388344211,82.6,233.01,232.98,8.53374918]
[1738388353147,82.6,233.05,232.98,8.53374918]
[1738388355040,82.6,233.05,233.0,8.53374918]
[1738388357444,82.6,233.05,233.03,20.0]
[1738388357623,82.6,233.05,233.04,20.0]
[1738388361737,82.6,233.05,233.04,28.53374918]
[1738388362138,0.03,233.06,233.04,28.53374918]
[1738388364056,0.03,233.06,233.05,13.41184853]
[1738388369282,0.03,233.06,233.04,20.0]
[1738388375772,0.03,233.06,233.01,21.94559771]
[1738388375962,0.03,233.06,233.01,13.41184853]
[1738388377185,0.03,233.06,233.04,20.0]
[1738388386469,0.03,233.06,233.05,13.41184853]
[1738388386674,0.03,233.06,233.05,21.94559771]
[1738388400719,0.03,233.06,233.05,22.19657771]
[1738388400911,0.03,233.06,233.05,26.54780551]
[1738388401120,0.03,233.06,233.05,26.67329551]
[1738388401819,0.03,233.06,233.05,18.13954633]
[1738388402802,0.03,233.06,233.05,25.29682551]
[1738388403796,0.03,233.06,233.05,25.42231551]
[1738388403987,0.03,233.06,233.05,26.67329551]
[1738388409699,0.03,233.06,233.05,26.54780551]
[1738388409884,0.03,233.06,233.05,29.30780551]
[1738388411795,0.03,233.06,233.05,29.18231551]
[1738388412003,0.03,233.06,233.05,28.18231551]
[1738388415914,0.03,233.06,233.05,26.60001551]
[1738388416510,0.03,233.06,233.05,26.47452551]
[1738388417708,0.03,233.06,233.05,26.66301551]
[1738388418405,0.03,233.06,233.05,22.00859771]
[1738388418608,0.03,233.06,233.05,2.823]
[1738388418904,0.03,233.06,233.05,45.14506771]
[1738388424114,0.03,233.06,233.05,44.89408771]
[1738388424305,0.03,233.06,233.05,44.76859771]
[1738388426918,0.09173161,233.16,233.06,13.41184853]
[1738388429713,0.03,233.17,233.13,13.41184853]
[1738388435640,0.03,233.17,233.1,8.53374918]
[1738388435812,0.03,233.17,233.1,11.31374918]
[1738388437027,0.03,233.17,233.11,13.41184853]
[1738388438246,0.03,233.17,233.11,2.78]
[1738388438424,0.03,233.17,233.07,1.6643]
[1738388438630,0.03,233.17,233.08,16.19184853]